bitfinex/quotes_SOLUSD_20260201
["timestamp","ask_amount","ask_price","bid_price","bid_amount"]
[1769986933518,29.44,100.99,100.9,4.07144344]
[1769986933904,29.44,100.99,100.88,13.99978973]
[1769986934117,29.44,100.99,100.88,13.99975467]
[1769986934417,34.66376151,100.97,100.89,4.08709008]
[1769986934922,64.47376151,100.97,100.87,4.08709008]
[1769986935324,0.28432314,100.94,100.87,4.08709008]
[1769986935812,0.28432314,100.95,100.87,4.08709008]
[1769986936010,0.28432314,100.95,100.88,4.08709008]
[1769986936217,0.28432314,100.95,100.86,1e-08]
[1769986936218,0.28432314,100.91,100.86,1e-08]
[1769986936421,0.28432314,100.91,100.83,4.08709008]
[1769986936422,5.16056666,100.84,100.83,4.08709008]
[1769986936610,2.87203476,100.84,100.83,4.08709008]
[1769986936926,2.87203476,100.84,100.81,14.00659575]
[1769986937227,2.87203476,100.84,100.82,4.08709008]
[1769986937403,2.87203476,100.84,100.83,4.08709008]
[1769986937608,2.87194621,100.89,100.83,14.0047733]
[1769986937804,34.6878097,100.9,100.83,14.0047733]
[1769986937805,9.91080277,100.9,100.84,4.07144344]
[1769986938012,2.87196061,100.91,100.84,4.07144344]
[1769986938013,12.78208599,100.91,100.84,4.07144344]
[1769986938411,9.91012538,100.91,100.86,4.07144344]
[1769986939029,12.78113876,100.92,100.86,4.07144344]
[1769986939517,9.90917815,100.92,100.86,4.07144344]
[1769986940330,37.54851683,100.94,100.86,4.07144344]
[1769986940511,2.8726025,100.94,100.87,9.91375037]
[1769986940711,2.8726025,100.94,100.87,4.07144344]
[1769986941335,12.77817869,100.96,100.87,4.07144344]
[1769986942735,37.54046078,100.96,100.89,4.07144344]
[1769986942918,2.87397026,100.95,100.89,4.07144344]
[1769986943115,2.87397026,100.95,100.86,9.91447257]
[1769986943320,2.87397026,100.92,100.84,4.07144344]
[1769986943519,2.87397026,100.92,100.84,13.98754905]
[1769986943716,2.87397026,100.92,100.8,24.80049126]
[1769986943928,9.63613273,100.93,100.79,4.07144344]
[1769986943929,2.87470229,100.89,100.79,4.07144344]
[1769986944128,2.87470229,100.89,100.82,9.91835211]
[1769986944520,2.87470229,100.89,100.82,13.98979555]
[1769986944833,12.78819355,100.88,100.83,4.07144344]
[1769986946021,4.27527085,100.9,100.83,4.07144344]
[1769986946022,9.91212251,100.89,100.83,4.07144344]
[1769986946231,12.78826373,100.89,100.83,4.07144344]
[1769986946939,9.91093144,100.9,100.85,4.07144344]
[1769986947146,9.91023399,100.91,100.85,4.07144344]
[1769986947814,9.90909781,100.92,100.85,4.07144344]
[1769986948643,12.78664509,100.92,100.85,4.07144344]
[1769986948830,2.87823823,100.94,100.87,4.07144344]
[1769986949422,9.905894,100.95,100.87,4.07144344]
[1769986950041,9.90393186,100.97,100.87,4.07144344]
[1769986950549,9.90393186,100.97,100.88,4.07144344]
[1769986950744,12.78352825,100.97,100.88,4.07144344]
[1769986950952,12.78549039,100.95,100.89,13.98322855]
[1769986951120,2.87959639,100.94,100.89,4.07144344]
[1769986952346,2.87959639,100.94,100.83,49.58534957]
[1769986952524,2.87959639,100.94,100.87,9.91357685]
[1769986953155,9.90785693,100.93,100.83,84.29724086]
[1769986953331,13.76095825,100.94,100.83,84.29724086]
[1769986953525,13.76095825,100.94,100.83,111.81724086]
[1769986953725,3.85364803,100.93,100.83,111.81724086]
[1769986954150,3.85364803,100.93,100.84,0.28432314]
[1769986954447,3.85364803,100.93,100.85,4.07144344]
[1769986955138,13.76248671,100.92,100.86,13.98617673]
[1769986956030,13.76248671,100.92,100.87,4.07144344]
[1769986957247,13.76248671,100.92,100.87,13.98442879]
[1769986957625,3.85364803,100.92,100.87,13.98442879]
[1769986957869,9.90832678,100.93,100.88,3.84792603]
[1769986958539,12.56376869,100.94,100.88,3.84792603]
[1769986959346,12.56376869,100.94,100.89,13.75971114]
[1769986960143,12.56376869,100.94,100.9,3.84792603]
[1769986960144,9.90731033,100.94,100.9,3.84792603]
[1769986960335,49.5175927,100.98,100.9,3.84792603]
[1769986960336,3.88886913,100.98,100.9,3.84792603]
[1769986960539,9.90437853,100.97,100.9,3.84792603]
[1769986960925,34.66420818,100.97,100.9,3.84792603]
[1769986961543,34.66420818,100.97,100.92,3.84792603]
[1769986963638,9.9030671,100.98,100.93,3.84792603]
[1769986963836,5.14520121,101.03,100.95,3.84792603]
[1769986964027,3.88886913,101.04,100.95,3.84792603]
[1769986964839,9.89833563,101.03,100.96,34.66719492]
[1769986965045,9.89833563,101.03,100.97,3.84792603]
[1769986966748,13.89383592,101.05,100.97,3.84792603]
[1769986967048,13.89383592,101.05,100.99,3.82345734]
[1769986968044,38.63406353,101.05,100.99,3.82345734]
[1769986968750,3.99774488,101.05,100.99,3.82345734]
[1769986968929,9.99511181,101.06,101.01,3.82345734]
[1769986969645,13.99285669,101.06,101.01,3.82345734]
[1769986970947,13.99285669,101.06,101.01,13.72273573]
[1769986971650,5.15278692,101.13,101.01,13.72273573]
[1769986971651,3.99774488,101.09,101.03,3.82345734]
[1769986971945,3.99774488,101.09,100.98,49.51221766]
[1769986971946,3.99774488,101.07,101.0,9.9007377]
[1769986972153,3.99774488,101.07,101.0,13.72419504]
[1769986972341,3.99774488,101.07,100.98,3.82345734]
[1769986972530,3.99774488,101.06,100.98,3.82345734]
[1769986973035,3.99774488,101.06,100.98,13.72591681]
[1769986973233,3.99774488,101.04,100.98,13.72591681]
[1769986973554,3.99774488,101.04,100.99,3.82345734]
[1769986974151,13.89579496,101.03,100.99,3.82345734]
[1769986976338,13.89579496,101.03,100.98,13.72591681]
[1769986976934,13.89579496,101.03,100.99,3.72566392]
[1769986977134,13.89579496,101.03,100.99,13.62753067]
[1769986977555,13.89579496,101.03,100.99,3.72566392]
[1769986977759,38.59870419,101.03,100.99,3.72566392]
[1769986978737,13.85357898,101.03,100.99,3.72566392]
[1769986979038,13.85357898,101.03,100.99,13.62740968]
[1769986980375,3.9555289,101.04,101.0,3.72566392]
[1769986980542,3.9555289,101.04,100.96,3.72566392]
[1769986981454,24.74219328,101.05,100.96,3.72566392]
[1769986981838,9.89511181,101.06,100.97,3.72566392]
[1769986982243,34.63112247,101.07,101.0,3.72566392]
[1769986982741,38.58665137,101.07,101.0,3.72566392]
[1769986983148,9.89367598,101.08,101.01,3.72566392]
[1769986983340,13.84800057,101.09,101.01,3.72566392]
[1769986984282,3.9555289,101.11,101.05,3.72566392]
[1769986984570,9.88989354,101.12,101.05,3.72566392]
[1769986984571,13.84542244,101.12,101.05,3.72566392]
[1769986985347,13.84542244,101.12,101.07,3.72566392]
[1769986987182,3.9555289,101.11,101.07,3.72566392]
[1769986987360,9.89119683,101.1,101.07,3.72566392]
[1769986987958,9.89119683,101.1,101.06,13.83969601]
[1769986988575,4.27527085,101.13,101.07,3.94470205]
[1769986988792,12.63242346,101.15,101.08,3.94470205]
[1769986989448,12.63242346,101.15,101.1,3.94470205]
[1769986989652,3.86349713,101.14,101.1,3.94470205]
[1769986989875,3.86349713,101.14,101.04,3.94470205]
[1769986989876,3.86349713,101.13,101.04,3.94470205]
[1769986990053,3.86349713,101.11,101.03,3.94470205]
[1769986990382,3.86349713,101.11,101.03,13.842107]
[1769986990559,3.86349713,101.11,101.04,13.84162651]
[1769986990759,3.86349713,101.09,101.04,3.94470205]
[1769986990964,3.86349713,101.09,101.05,3.94470205]
[1769986992055,3.86349713,101.11,101.06,3.94470205]
[1769986992571,34.61234176,101.12,101.06,3.94470205]
[1769986992762,9.8892405,101.12,101.06,3.94470205]
[1769986992969,9.88847646,101.13,101.06,3.94470205]
[1769986993170,3.86349713,101.12,101.04,3.94470205]
[1769986993355,3.86349713,101.09,101.04,3.94470205]
[1769986993977,9.89315393,101.08,101.04,3.94470205]
[1769986994167,13.75665106,101.08,101.04,3.94470205]
[1769986994365,13.75665106,101.08,101.04,13.84168974]
[1769986994677,3.86349713,101.08,101.04,13.84168974]
[1769986995063,9.89259236,101.09,101.05,3.94470205]
[1769986995577,9.89259236,101.09,101.01,36.96246476]
[1769986995578,3.86349713,101.08,101.01,3.94470205]
[1769986995778,3.86349713,101.08,101.02,3.94470205]
[1769986996594,9.89413277,101.07,101.03,3.94470205]
[1769986996782,3.86349713,101.06,100.99,3.94470205]
[1769986997894,3.86349713,101.06,100.97,3.94470205]
[1769986998683,3.86349713,101.04,100.97,3.94470205]
[1769987000777,84.11677387,101.05,100.94,9.90680482]
[1769987000778,3.86349713,101.02,100.94,9.90680482]
[1769987000983,3.86349713,101.02,100.95,3.94470205]
[1769987002796,3.86349713,101.0,100.95,3.94470205]
[1769987003089,3.86349713,101.0,100.93,3.94470205]
[1769987004888,84.15008415,101.01,100.93,3.94470205]
[1769987004889,3.86349713,100.98,100.93,3.94470205]
[1769987005489,31.36349713,101.02,100.93,3.94470205]
[1769987005790,34.63289134,101.06,100.95,3.94470205]
[1769987006186,3.86349713,101.05,100.95,3.94470205]
[1769987006370,3.86349713,101.05,100.96,3.94470205]
[1769987006970,3.86349713,101.03,100.98,3.94470205]
[1769987007768,9.89707046,101.04,100.98,3.94470205]
[1769987008179,13.76056759,101.04,100.98,3.94470205]
[1769987009288,13.76056759,101.04,101.0,3.94470205]
[1769987009485,9.89707046,101.04,101.0,3.94470205]
[1769987009980,3.86349713,101.1,101.0,3.94470205]
[1769987010179,3.86349713,101.1,101.04,3.94470205]
[1769987010180,9.89119683,101.1,101.04,3.94470205]
[1769987010775,13.75399966,101.11,101.04,3.94470205]
[1769987010969,34.61604896,101.11,101.04,3.94470205]
[1769987011176,3.86349713,101.1,101.04,3.94470205]
[1769987011377,13.7553678,101.1,101.06,3.94470205]
[1769987012089,38.48335988,101.1,101.04,13.84133558]
[1769987012396,3.86349713,101.09,101.04,3.94470205]
[1769987013386,9.89315393,101.08,101.02,13.84329811]
[1769987013585,13.75665106,101.08,101.03,3.94470205]
[1769987014090,3.86349713,101.07,101.03,3.94470205]
[1769987015290,9.89511181,101.06,101.03,3.94470205]
[1769987017701,13.91245896,101.06,101.02,4.08637118]
[1769987018987,38.65023849,101.06,101.02,4.08637118]
[1769987019278,4.01734715,101.05,100.99,4.08637118]
[1769987019486,9.89707046,101.04,100.99,4.08637118]
[1769987019889,38.65709377,101.04,100.99,4.08637118]
[1769987020603,4.01734715,101.03,100.99,4.08637118]
[1769987020899,4.01734715,101.03,100.96,13.99097104]
[1769987021399,4.01734715,101.03,100.97,4.08637118]
[1769987021600,38.66395177,101.02,100.97,4.08637118]
[1769987022107,4.01734715,101.01,100.95,4.08637118]
[1769987023204,9.90099009,101.0,100.95,13.99217672]
[1769987023499,9.90099009,101.0,100.96,4.08637118]
[1769987025007,9.90099009,101.0,100.97,4.08637118]
[1769987025706,3.99319164,100.99,100.91,4.05478844]
[1769987026190,3.99319164,100.96,100.89,13.9660288]
[1769987026383,3.99319164,100.94,100.89,13.9660288]
[1769987027292,3.99319164,100.94,100.9,4.05478844]
[1769987027785,38.66382065,100.95,100.9,4.05478844]
[1769987028198,3.99319164,100.94,100.9,4.05478844]
[1769987028504,3.99319164,100.92,100.87,0.2]
[1769987030604,84.2167839,100.93,100.87,0.2]
[1769987030605,38.67756385,100.91,100.87,0.2]
[1769987030906,34.68437221,100.91,100.87,4.25478844]
[1769987031286,9.90785693,100.93,100.88,4.05478844]
[1769987031595,34.67062901,100.95,100.88,4.05478844]
[1769987032507,3.99319164,100.94,100.88,4.05478844]
[1769987032700,3.99319164,100.92,100.87,0.2]
[1769987032927,3.99319164,100.92,100.87,4.25478844]
[1769987034012,3.99319164,100.92,100.88,4.05478844]
[1769987034889,34.67749925,100.93,100.88,4.05478844]
[1769987034890,9.90785693,100.93,100.89,4.05478844]
[1769987035096,13.9004452,100.94,100.89,4.05478844]
[1769987035300,9.90725356,100.94,100.89,4.05478844]
[1769987035794,3.99319164,100.93,100.88,4.05478844]
[1769987036395,9.90662069,100.95,100.89,4.05478844]
[1769987036993,3.99319164,100.96,100.9,9.91080277]
[1769987037208,3.99319164,100.96,100.91,4.05478844]
[1769987039610,9.905894,100.95,100.91,4.05478844]
[1769987040209,9.905894,100.95,100.92,4.05478844]
[1769987040394,28.75565282,100.96,100.92,4.05478844]
[1769987040395,9.9054145,100.96,100.92,4.05478844]
[1769987040796,49.50386337,101.01,100.93,4.05478844]
[1769987040797,9.9000099,101.01,100.93,4.05478844]
[1769987041094,9.9000099,101.01,100.94,4.05478844]
[1769987041506,13.89221236,101.03,100.96,4.05478844]
[1769987042086,31.79527085,101.02,100.92,4.05478844]
[1769987042290,4.27527085,101.02,100.93,4.05478844]
[1769987042701,3.99319164,101.01,100.93,4.05478844]
[1769987043307,3.99319164,101.01,100.95,4.05478844]
[1769987043691,38.64665697,101.0,100.95,4.05478844]
[1769987044510,3.99319164,100.99,100.95,4.05478844]
[1769987044715,3.99319164,100.99,100.94,4.05478844]
[1769987045018,3.99319164,100.99,100.93,4.05478844]
[1769987046005,38.6535204,100.98,100.93,4.05478844]
[1769987051422,38.6535204,100.98,100.93,9.90766663]
[1769987051608,38.6535204,100.98,100.94,3.92412049]
[1769987052122,3.8388105,100.97,100.92,3.92412049]
[1769987053809,3.8388105,100.97,100.93,3.92412049]
[1769987055825,9.90295107,100.98,100.94,3.92412049]
[1769987056133,24.75446185,101.0,100.95,3.92412049]
[1769987056342,28.59327235,101.0,100.95,3.92412049]
[1769987056831,3.8388105,100.99,100.95,3.92412049]
[1769987057746,28.59327235,101.0,100.95,3.92412049]
[1769987058418,38.49426244,101.0,100.95,3.92412049]
[1769987061335,3.8388105,100.99,100.95,3.92412049]
[1769987062741,3.8388105,100.97,100.91,3.92412049]
[1769987064834,38.50600542,100.96,100.91,3.92412049]
[1769987065339,38.50600542,100.96,100.9,3.92412049]
[1769987065527,38.50600542,100.96,100.91,3.92412049]
[1769987066622,9.90491283,100.96,100.91,3.92412049]
[1769987066930,9.90491283,100.96,100.92,3.92412049]
[1769987069432,3.8388105,100.96,100.92,3.92412049]
[1769987070541,3.8388105,100.99,100.93,3.92412049]
[1769987071547,34.66032876,100.98,100.93,3.92412049]
[1769987071743,9.90099009,101.0,100.94,3.92412049]
[1769987071951,5.1510029,101.03,100.98,3.92412049]
[1769987072242,3.8388105,101.05,100.96,3.92412049]
[1769987072445,3.8388105,101.05,100.97,3.92412049]
[1769987072646,3.8388105,101.05,100.96,3.92412049]
[1769987072822,3.8388105,101.02,100.94,3.92412049]
[1769987073142,3.8388105,101.05,100.97,3.92412049]
[1769987073443,3.8388105,101.06,101.0,3.92412049]
[1769987073640,9.89457537,101.07,101.03,3.92412049]
[1769987073946,3.8388105,101.06,101.02,3.92412049]
[1769987074246,34.62990731,101.07,101.02,3.92412049]
[1769987074247,13.73338587,101.07,101.02,3.92412049]
[1769987074630,9.99360043,101.08,101.02,3.92412049]
[1769987074831,0.1,101.11,101.07,3.92412049]
[1769987075241,3.8388105,101.14,101.09,3.92412049]
[1769987075542,0.1,101.17,101.14,13.81140544]
[1769987075843,0.1,101.21,101.17,3.92412049]
[1769987076045,3.8388105,101.2,101.11,13.81431278]
[1769987076233,3.8388105,101.2,101.12,9.88919802]
[1769987076438,3.8388105,101.2,101.11,3.92412049]
[1769987076843,9.98047187,101.21,101.13,19.32663183]
[1769987077044,3.8388105,101.2,101.13,34.60859122]
[1769987077344,9.98064899,101.21,101.13,34.60859122]
[1769987077549,13.72072205,101.2,101.13,34.15935377]
[1769987077851,13.72072205,101.2,101.09,27.52]
[1769987077852,3.76365712,101.16,101.06,9.43869719]
[1769987078029,3.76365712,101.16,101.02,9.43869719]
[1769987078229,3.76365712,101.16,101.04,9.43869719]
[1769987078544,3.76365712,101.16,101.06,24.73661632]
[1769987078744,3.76365712,101.16,101.08,9.89276313]
[1769987078955,3.76365712,101.16,101.06,9.43869719]
[1769987079153,3.76365712,101.16,101.07,9.89374555]
[1769987079930,3.76365712,101.14,101.07,12.15095688]
[1769987080448,3.76365712,101.14,101.06,9.89481172]
[1769987080941,3.76365712,101.14,101.06,12.15331687]
[1769987081248,3.76365712,101.14,101.05,11.69720234]
[1769987081453,3.76365712,101.14,101.08,2.25850515]
[1769987081951,3.76365712,101.12,101.05,2.2597665]
[1769987082153,3.76365712,101.12,101.03,12.15719501]
[1769987082460,3.76365712,101.12,101.02,12.15851189]
[1769987082758,3.76365712,101.12,101.03,12.15779536]
[1769987083061,3.76365712,101.12,101.04,2.26101336]
[1769987083744,3.76365712,101.09,101.0,2.26190733]
[1769987083951,3.76365712,101.07,100.99,2.26190733]
[1769987084141,3.76365712,101.07,100.99,12.16321898]
[1769987084354,3.76365712,101.07,100.99,12.16380408]
[1769987084870,3.76365712,101.07,100.99,12.16462558]
[1769987085877,3.95219978,101.07,101.02,2.26452808]
[1769987086033,13.84731159,101.06,101.01,9.89991441]
[1769987086868,13.84731159,101.06,101.0,12.16511425]
[1769987087039,3.95219978,101.05,100.99,9.90160791]
[1769987087241,3.95219978,101.05,100.96,2.26538168]
[1769987087558,3.95219978,101.05,100.98,9.90276837]
[1769987087738,3.95219978,101.05,100.97,2.26538168]
[1769987087939,84.62443651,101.11,100.97,12.16901667]
[1769987087940,34.63974662,101.04,100.97,12.16901667]
[1769987088146,3.95219978,101.03,100.97,12.16901667]
[1769987088873,3.95219978,101.03,100.95,54.53097371]
[1769987089074,3.95219978,101.03,100.95,39.67258223]
[1769987089444,3.95219978,101.03,100.96,12.17167118]
[1769987089644,3.95219978,101.03,100.96,2.26705956]
[1769987090370,34.64660462,101.02,100.96,2.26705956]
[1769987090569,3.95219978,101.01,100.96,2.26705956]
[1769987090777,3.95219978,101.01,100.94,2.26788408]
[1769987090951,3.95219978,101.01,100.94,12.17409565]
[1769987091152,3.95219978,101.01,100.96,2.26869913]
[1769987091543,38.5988044,101.02,100.97,2.26869913]
[1769987091747,3.95219978,101.01,100.96,12.17439067]
[1769987092352,13.85122967,101.02,100.97,12.17264944]
[1769987092545,3.95219978,101.01,100.96,9.90464976]
[1769987092758,3.95219978,101.01,100.96,2.27030124]
[1769987092977,3.95219978,101.01,100.97,9.9039126]
[1769987093171,13.85122967,101.02,100.97,12.17421384]
[1769987093468,13.85048781,101.03,100.98,2.27030124]
[1769987095280,3.95219978,101.02,100.96,12.176457]
[1769987095468,3.95219978,101.02,100.97,12.17571962]
[1769987095665,3.95219978,101.02,100.97,2.27186677]
[1769987095858,3.95219978,101.02,100.97,12.17524147]
[1769987096365,9.8971092,101.04,100.99,2.27263607]
[1769987096579,28.68916586,101.07,101.0,11.71133326]
[1769987096796,28.68916586,101.07,100.98,34.66017887]
[1769987096797,3.95219978,101.1,101.04,2.27339654]
[1769987097028,3.95219978,101.1,100.99,2.27339654]
[1769987097029,3.95219978,101.09,100.99,2.27339654]
[1769987097214,3.95219978,101.09,100.96,2.27339654]
[1769987097215,3.95219978,101.06,100.96,2.27339654]
[1769987097378,3.95219978,101.04,100.97,2.27339654]
[1769987098370,3.95219978,101.04,100.98,2.27414827]
[1769987099374,9.89805008,101.03,100.98,12.17677644]
[1769987099766,3.95219978,101.02,100.94,2.27562593]
[1769987099967,3.95219978,101.02,100.96,2.27562593]
[1769987100161,3.95219978,101.02,100.96,12.1801667]
[1769987100355,3.95219978,101.02,100.97,9.90362558]
[1769987100557,3.95219978,101.02,100.98,2.27562593]
[1769987100753,3.95219978,101.01,100.93,2.27635205]
[1769987100976,3.95219978,101.01,100.95,12.18169009]
[1769987101184,3.95219978,101.01,100.95,2.27635205]
[1769987101384,13.85300365,101.01,100.96,9.90491283]
[1769987101564,9.89876885,101.03,100.98,2.27635205]
[1769987101764,49.46237823,101.09,101.0,2.27706983]
[1769987101765,3.95219978,101.06,101.0,2.27706983]
[1769987101972,38.58892826,101.05,101.0,2.27706983]
[1769987102579,3.95219978,101.04,101.0,2.27706983]
[1769987102780,3.95219978,101.04,100.99,2.27777937]
[1769987103077,3.95219978,101.04,100.98,29.77777937]
[1769987103564,3.95219978,101.02,100.97,9.90336629]
[1769987103882,3.95219978,101.02,100.94,9.90648079]
[1769987104085,3.95219978,101.02,100.93,12.18591735]
[1769987104258,3.95219978,101.02,100.94,2.27848076]
[1769987104463,13.84969408,101.04,100.98,2.27848076]
[1769987104662,3.95219978,101.04,100.99,11.71717795]
[1769987104869,3.95219978,101.03,100.97,12.18302346]
[1769987105071,3.95219978,101.03,100.96,9.90446944]
[1769987105277,3.95219978,101.03,100.95,37.40570018]
[1769987105483,3.95219978,101.01,100.95,9.90570018]
[1769987105878,3.95219978,101.01,100.92,12.18833098]
[1769987106180,3.95219978,101.01,100.93,2.27985947]
[1769987106375,3.95219978,101.01,100.94,12.18643873]
[1769987106776,3.95219978,101.01,100.94,36.95362715]
[1769987106963,3.95219978,101.01,100.95,2.28053697]
[1769987107576,13.66764158,101.0,100.95,2.28053697]
[1769987108284,13.66764158,101.0,100.95,12.18642038]
[1769987108785,3.76665149,100.99,100.93,2.28252313]
[1769987109482,3.76665149,100.97,100.92,9.90836517]
[1769987109679,3.76665149,100.97,100.92,12.1908883]
[1769987110282,3.76665149,100.97,100.92,2.28252313]
[1769987110481,3.76665149,100.97,100.91,39.69257058]
[1769987111185,38.42698025,100.98,100.92,2.2838095]
[1769987111767,3.76665149,100.97,100.92,9.90880064]
[1769987111968,3.76665149,100.97,100.91,39.69342213]
[1769987112169,3.76665149,100.97,100.92,9.90877184]
[1769987112788,3.76665149,100.97,100.92,12.19383834]
[1769987113783,13.67156432,100.96,100.92,12.19383834]
[1769987113985,13.67156432,100.96,100.92,12.19445603]
[1769987114494,13.67156432,100.96,100.91,27.5]
[1769987114495,3.76665149,100.95,100.91,27.5]
[1769987114694,3.76665149,100.95,100.91,37.40926849]
[1769987114871,9.90491283,100.96,100.92,12.19491986]
[1769987115071,13.67156432,100.96,100.92,12.19505111]
[1769987115994,13.67156432,100.96,100.92,2.28629478]
[1769987116495,13.67156432,100.96,100.91,39.6964253]
[1769987117193,3.76665149,100.95,100.88,9.91225827]
[1769987117508,3.76665149,100.93,100.87,0.2]
[1769987117675,3.76665149,100.91,100.86,1e-08]
[1769987117874,3.76665149,100.89,100.84,10.11662849]
[1769987118394,3.76665149,100.89,100.84,34.90837779]
[1769987118583,3.76665149,100.89,100.84,0.2]
[1769987119870,3.76665149,100.89,100.84,10.11640424]
[1769987120288,13.67941913,100.88,100.84,10.11640424]
[1769987121577,3.76665149,100.87,100.84,0.2]
[1769987121798,3.76665149,100.87,100.81,0.2]
[1769987122000,3.76665149,100.87,100.81,10.11957696]
[1769987122299,3.76665149,100.87,100.81,10.11904864]
[1769987122510,3.76665149,100.87,100.81,12.40942566]
[1769987122678,3.76665149,100.87,100.81,0.2]
[1769987123275,3.76665149,100.85,100.81,10.11920461]
[1769987123586,3.76665149,100.88,100.82,2.29093372]
[1769987123777,3.76665149,100.88,100.81,10.11913667]
[1769987123973,3.76665149,100.88,100.81,0.2]
[1769987124878,3.76665149,100.88,100.8,0.2]
[1769987125074,3.76665149,100.86,100.8,0.2]
[1769987125383,3.76665149,100.83,100.78,27.52]
[1769987125597,3.76665149,100.81,100.78,27.52]
[1769987126408,3.76665149,100.81,100.73,9.92700374]
[1769987126580,5.166,100.75,100.72,34.74910578]
[1769987126984,5.166,100.75,100.72,9.92851469]
[1769987127395,5.166,100.75,100.71,39.96235388]
[1769987127686,5.166,100.75,100.72,2.49309728]
[1769987127885,3.76665149,100.79,100.73,9.45688199]
[1769987128085,3.76665149,100.79,100.73,36.99688199]
[1769987128311,4.13335095,100.78,100.73,27.54]
[1769987128601,4.13335095,100.78,100.71,34.75300796]
[1769987129202,4.13335095,100.78,100.71,9.9292566]
[1769987129503,4.13335095,100.76,100.71,9.9292566]
[1769987130101,4.13335095,100.76,100.71,34.75300796]
[1769987130306,4.13335095,100.76,100.71,44.20988995]
[1769987130802,9.92358836,100.77,100.72,27.54]
[1769987130803,4.13335095,100.77,100.72,27.54]
[1769987131388,4.13335095,100.77,100.73,9.92752903]
[1769987132299,49.59950501,100.81,100.74,9.45688199]
[1769987132300,4.13335095,100.79,100.74,9.45688199]
[1769987132605,4.13335095,100.81,100.76,9.45688199]
[1769987132904,4.13335095,100.81,100.75,37.01688199]
[1769987133100,14.05346853,100.81,100.75,37.01688199]
[1769987133506,4.13335095,100.8,100.76,9.92457324]
[1769987133908,4.13335095,100.8,100.75,27.56]
[1769987134208,4.13335095,100.8,100.74,9.92651491]
[1769987134809,4.13335095,100.8,100.7,24.82563569]
[1769987135007,4.13335095,100.75,100.69,2.47215037]
[1769987135306,4.27527085,100.74,100.67,9.93286611]
[1769987135517,4.13335095,100.73,100.67,44.22336288]
[1769987135692,9.92616494,100.75,100.67,44.22336288]
[1769987135693,4.13335095,100.75,100.69,9.45688199]
[1769987136009,4.13335095,100.75,100.68,27.56]
[1769987136010,4.13335095,100.74,100.68,37.01688199]
[1769987136213,4.13335095,100.74,100.68,27.56]
[1769987136507,4.13335095,100.74,100.66,10.24874431]
[1769987136715,4.13335095,100.74,100.67,9.93279321]
[1769987137288,4.13335095,100.7,100.66,0.3143727]
[1769987137527,4.13335095,100.7,100.63,37.69683067]
[1769987137829,4.13335095,100.7,100.55,70.55692478]
[1769987137830,3.73600036,100.65,100.56,3.81530552]
[1769987137996,3.73600036,100.61,100.56,9.94392917]
[1769987138711,3.73600036,100.61,100.49,49.75374847]
[1769987139012,3.73600036,100.61,100.55,9.44529257]
[1769987139210,3.73600036,100.61,100.53,9.94665812]
[1769987139412,3.73600036,100.61,100.51,9.94921961]
[1769987139628,3.73600036,100.54,100.48,9.95222929]
[1769987139793,3.73600036,100.54,100.47,12.42528108]
[1769987140110,3.73600036,100.54,100.47,37.30833074]
[1769987140318,3.73600036,100.54,100.47,2.47215037]
[1769987140817,3.73600036,100.52,100.45,0.3143727]
[1769987141191,3.73600036,100.52,100.45,10.26888244]
[1769987141591,3.73600036,100.5,100.45,0.3143727]
[1769987142019,3.73600036,100.5,100.41,9.95834438]
[1769987142189,3.73600036,100.5,100.36,27.58]
[1769987142190,3.73600036,100.45,100.36,9.96334583]
[1769987142393,3.73600036,100.43,100.33,3.81530552]
[1769987142593,3.73600036,100.39,100.32,9.96795968]
[1769987142808,3.73600036,100.39,100.33,9.9670598]
[1769987143011,3.73600036,100.39,100.33,9.96691588]
[1769987143191,3.73600036,100.41,100.35,13.27218751]
[1769987143390,3.73600036,100.41,100.35,9.96511968]
[1769987143603,3.73600036,100.41,100.35,19.42200167]
[1769987143808,3.73600036,100.41,100.36,3.81530552]
[1769987143993,3.73600036,100.41,100.35,19.42200167]
[1769987143994,3.73600036,100.41,100.35,9.96511968]
[1769987144201,3.73600036,100.41,100.31,9.45688199]
[1769987144398,3.73600036,100.41,100.31,13.27218751]
[1769987144795,3.73600036,100.41,100.34,9.96546718]
[1769987145017,3.73600036,100.38,100.25,0.3143727]
[1769987145313,3.73600036,100.36,100.28,9.97129766]
[1769987145497,3.73600036,100.36,100.29,3.81530552]
[1769987145691,3.73600036,100.34,100.28,47.84838465]
[1769987145894,3.73600036,100.34,100.29,9.45688199]
[1769987146119,3.73600036,100.34,100.28,47.84838465]
[1769987146319,3.73600036,100.34,100.28,34.40227363]
[1769987146700,3.73600036,100.34,100.28,9.47207818]
[1769987147218,3.86834661,100.33,100.25,10.28857445]
[1769987147417,3.86834661,100.3,100.17,3.98922903]
[1769987147612,3.86834661,100.28,100.21,9.97888233]
[1769987147923,3.86834661,100.28,100.15,53.91007464]
[1769987148227,3.86834661,100.28,100.14,3.98922903]
[1769987148430,3.86834661,100.25,100.03,52.69867163]
[1769987148641,5.36086188,100.19,100.05,0.3143727]
[1769987148796,5.36086188,100.19,99.991,15.87401089]
[1769987148797,3.86834661,100.15,99.908,10.43702452]
[1769987148998,4.27527085,100.19,99.906,5.19655242]